{"text_format":"3","workbook":"xlsx","n_sheets":6,"sheets":["Dziennik połączeń dz. sprzedaży","Informacje kontaktowe klienta","Przed połączeniem","Pierwsza rozmowa telefoniczna","Informacje o sprzedaży","Dalsze działania"],"not_rendered":{"defined_names":14},"read":"whole","date_system":"1900"}

{"sheet":"Dziennik połączeń dz. sprzedaży","index":0,"n_rows":13,"n_cols":7,"rows_kept":13}
[null," Nazwa firmy"]
[null,"Dziennik połączeń dz. sprzedaży"]
[null,"Nr połączenia","Klient","Firma","Data","Godzina","Uwagi"]
[null,1,"Jan Michalski",{"$f":"IF(Dziennik_połączeń_działu_sprzedaży[[#This Row],[Klient]]=\"\",\"\",IFERROR(VLOOKUP(Dziennik_połączeń_działu_sprzedaży[[#This Row],[Klient]],Informacje_kontaktowe_klienta[],2,0),\"Not Found\"))","v":"Proseware, Inc."},{"$f":"TODAY()-5","v":"2016-10-14"},"08:30:00"]
[null,2,"Roman Ostrowski",{"$f":"IF(Dziennik_połączeń_działu_sprzedaży[[#This Row],[Klient]]=\"\",\"\",IFERROR(VLOOKUP(Dziennik_połączeń_działu_sprzedaży[[#This Row],[Klient]],Informacje_kontaktowe_klienta[],2,0),\"Not Found\"))","v":"Litware, Inc."},{"$f":"TODAY()-5","v":"2016-10-14"},"09:00:00"]
[null,3,"Filip Majewski",{"$f":"IF(Dziennik_połączeń_działu_sprzedaży[[#This Row],[Klient]]=\"\",\"\",IFERROR(VLOOKUP(Dziennik_połączeń_działu_sprzedaży[[#This Row],[Klient]],Informacje_kontaktowe_klienta[],2,0),\"Not Found\"))","v":"Northwind Traders"},"2016-10-14","09:30:00"]
[null,4,"Artur Wieczorek",{"$f":"IF(Dziennik_połączeń_działu_sprzedaży[[#This Row],[Klient]]=\"\",\"\",IFERROR(VLOOKUP(Dziennik_połączeń_działu_sprzedaży[[#This Row],[Klient]],Informacje_kontaktowe_klienta[],2,0),\"Not Found\"))","v":"Lucerne Publishing"},"2016-10-14","10:00:00"]
[null,5,"Błażej Woźniak",{"$f":"IF(Dziennik_połączeń_działu_sprzedaży[[#This Row],[Klient]]=\"\",\"\",IFERROR(VLOOKUP(Dziennik_połączeń_działu_sprzedaży[[#This Row],[Klient]],Informacje_kontaktowe_klienta[],2,0),\"Not Found\"))","v":"Margie’s Travel"},"2016-10-14","10:30:00"]
[null,6,"Jan Michalski",{"$f":"IF(Dziennik_połączeń_działu_sprzedaży[[#This Row],[Klient]]=\"\",\"\",IFERROR(VLOOKUP(Dziennik_połączeń_działu_sprzedaży[[#This Row],[Klient]],Informacje_kontaktowe_klienta[],2,0),\"Not Found\"))","v":"Proseware, Inc."},{"$f":"TODAY()-3","v":"2016-10-16"},"11:00:00"]
[null,7,"Roman Ostrowski",{"$f":"IF(Dziennik_połączeń_działu_sprzedaży[[#This Row],[Klient]]=\"\",\"\",IFERROR(VLOOKUP(Dziennik_połączeń_działu_sprzedaży[[#This Row],[Klient]],Informacje_kontaktowe_klienta[],2,0),\"Not Found\"))","v":"Litware, Inc."},{"$f":"TODAY()-3","v":"2016-10-16"},"11:30:00"]
[null,8,"Jan Michalski",{"$f":"IF(Dziennik_połączeń_działu_sprzedaży[[#This Row],[Klient]]=\"\",\"\",IFERROR(VLOOKUP(Dziennik_połączeń_działu_sprzedaży[[#This Row],[Klient]],Informacje_kontaktowe_klienta[],2,0),\"Not Found\"))","v":"Proseware, Inc."},{"$f":"TODAY()-1","v":"2016-10-18"},"12:00:00"]
[null,9,"Błażej Woźniak",{"$f":"IF(Dziennik_połączeń_działu_sprzedaży[[#This Row],[Klient]]=\"\",\"\",IFERROR(VLOOKUP(Dziennik_połączeń_działu_sprzedaży[[#This Row],[Klient]],Informacje_kontaktowe_klienta[],2,0),\"Not Found\"))","v":"Margie’s Travel"},{"$f":"TODAY()-1","v":"2016-10-18"},"12:30:00"]
[null,10,"Błażej Woźniak",{"$f":"IF(Dziennik_połączeń_działu_sprzedaży[[#This Row],[Klient]]=\"\",\"\",IFERROR(VLOOKUP(Dziennik_połączeń_działu_sprzedaży[[#This Row],[Klient]],Informacje_kontaktowe_klienta[],2,0),\"Not Found\"))","v":"Margie’s Travel"},{"$f":"TODAY()","v":"2016-10-19"},"13:00:00"]

{"sheet":"Informacje kontaktowe klienta","index":1,"n_rows":8,"n_cols":8,"rows_kept":8}
[null,{"$f":" Nazwa_firmy","v":" Nazwa firmy"}]
[null,"Informacje kontaktowe klienta"]
[null,"Imię i nazwisko klienta","Nazwa firmy","Adres","Kod pocztowy, miasto","Podstawowy numer telefonu","Dodatkowy numer telefonu","Adres e-mail"]
[null,"Roman Ostrowski","Litware, Inc.","ul. Główna 100","12-345 Warszawa","(541) 555-0135","(541) 555-0136","roman@litwareinc.com"]
[null,"Artur Wieczorek","Lucerne Publishing","ul. Druga 567","23-456 Szczecin","(425) 555-0198","(425) 555-0199","artur@lucernepublishing.com"]
[null,"Błażej Woźniak","Margie’s Travel","ul. Pomarańczowa 987","34-567 Bytom","(888) 555-0125","(888) 555-0126","blazej@margiestravel.com"]
[null,"Filip Majewski","Northwind Traders","ul. 3 Maja 890","45-678 Poznań","(541) 555-0175","(541) 555-0176","filip@northwindtraders.com"]
[null,"Jan Michalski","Proseware, Inc.","al. Szeroka 123","56-789 Toruń","(509) 555-0150","(509) 555-0151","jan@proseware.com"]

{"sheet":"Przed połączeniem","index":2,"n_rows":13,"n_cols":3,"rows_kept":13}
[null,{"$f":"Nazwa_firmy","v":" Nazwa firmy"}]
[null,"Lista kontrolna Połączenia działu sprzedaży"]
[null,"Pole wyboru","Przed połączeniem"]
[null,null,"Przegląd historii klienta"]
[null,null,"Przegląd historii pracodawcy klienta"]
[null,null,"Przegląd priorytetów i strategii sprzedaży"]
[null,null,"Dodaj element"]
[null,null,"Dodaj element"]
[null,null,"Dodaj element"]
[null,null,"Dodaj element"]
[null,null,"Dodaj element"]
[null,null,"Dodaj element"]
[null,null,"Dodaj element"]

{"sheet":"Pierwsza rozmowa telefoniczna","index":3,"n_rows":13,"n_cols":3,"rows_kept":13}
[null,{"$f":"Nazwa_firmy","v":" Nazwa firmy"}]
[null,"Lista kontrolna Połączenia działu sprzedaży"]
[null,"Pole wyboru","Pierwsza rozmowa telefoniczna"]
[null,null,"Bezpośrednie połączenie z odpowiednią osobą"]
[null,null,"Przejrzyste wprowadzenie"]
[null,null,"Dodaj element"]
[null,null,"Dodaj element"]
[null,null,"Dodaj element"]
[null,null,"Dodaj element"]
[null,null,"Dodaj element"]
[null,null,"Dodaj element"]
[null,null,"Dodaj element"]
[null,null,"Dodaj element"]

{"sheet":"Informacje o sprzedaży","index":4,"n_rows":13,"n_cols":3,"rows_kept":13}
[null,{"$f":"Nazwa_firmy","v":" Nazwa firmy"}]
[null,"Lista kontrolna Połączenia działu sprzedaży"]
[null,"Pole wyboru","Informacje o sprzedaży"]
[null,null,"Przejrzyste i przekonujące wprowadzenie dotyczące produktu/usługi"]
[null,null,"Omówienie wszystkich podstawowych zagadnień"]
[null,null,"Wspomnienie o obecności w sieci Web (np. witryna internetowa, sieci społecznościowe)"]
[null,null,"Dodaj element"]
[null,null,"Dodaj element"]
[null,null,"Dodaj element"]
[null,null,"Dodaj element"]
[null,null,"Dodaj element"]
[null,null,"Dodaj element"]
[null,null,"Dodaj element"]

{"sheet":"Dalsze działania","index":5,"n_rows":13,"n_cols":3,"rows_kept":13}
[null,{"$f":"Nazwa_firmy","v":" Nazwa firmy"}]
[null,"Lista kontrolna Połączenia działu sprzedaży"]
[null,"Pole wyboru","Informacje dotyczące dalszych działań"]
[null,null,"Informacje kontaktowe klienta"]
[null,null,"Dane osobowe klienta"]
[null,null,"Preferencje klienta"]
[null,null,"Kontakt zaplanowany ponownie?"]
[null,null,"Dokonano sprzedaży?"]
[null,null,"Dodaj element"]
[null,null,"Dodaj element"]
[null,null,"Dodaj element"]
[null,null,"Dodaj element"]
[null,null,"Dodaj element"]